[Event "44th Chess Olympiad Open 2022"]
[Site "Chennai"]
[Date "2022.08.02"]
[Round "5.44"]
[White "Asllani, Muhamet"]
[Black "McDonald, Jhustice-Dimonte"]
[Result "1-0"]
[WhiteElo "2235"]
[BlackElo "1884"]
[Annotator "NA RC"]
[PlyCount "103"]
[EventDate "2022.??.??"]
[TimeControl "60"]

1. e4 {[%emt 0:00:09]} c5 {[%emt 0:00:07]} 2. Nf3 {[%emt 0:00:16]} e6 {[%emt 0:
00:00]} 3. c3 {[%emt 0:00:08]} Nc6 {[%emt 0:00:20]} 4. d4 {[%emt 0:00:05]} d5 {
[%emt 0:01:17]} 5. e5 {[%emt 0:00:07]} cxd4 {[%emt 0:02:15]} 6. cxd4 {[%emt 0:
00:00]} Bb4+ {[%emt 0:01:35]} 7. Nc3 {[%emt 0:00:13]} Nge7 {[%emt 0:01:16]} 8.
Bd3 {[%emt 0:00:25]} a5 {[%emt 0:04:24]} 9. O-O {[%emt 0:00:20]} Bxc3 {[%emt 0:
00:00]} 10. bxc3 {[%emt 0:00:06]} b6 {[%emt 0:00:10]} 11. Qe2 {[%emt 0:00:16]}
Ng6 {[%emt 0:02:56]} 12. g3 {[%emt 0:00:29]} f6 {[%emt 0:12:09]} 13. exf6 {
[%emt 0:05:14]} Qxf6 {[%emt 0:05:30]} 14. Rb1 {[%emt 0:04:49]} O-O {[%emt 0:00:
00]} 15. Ng5 {[%emt 0:01:29]} h6 {[%emt 0:12:39]} 16. Rxb6 {[%emt 0:02:41]} Bd7
{[%emt 0:01:26]} 17. Qh5 {[%emt 0:01:42]} Be8 {[%emt 0:04:28]} 18. Rxc6 {
[%emt 0:16:34]} Nf4 {[%emt 0:12:23]} 19. Qd1 {[%emt 0:10:51]} hxg5 {[%emt 0:00:
00]} 20. Rb6 {[%emt 0:08:40]} Bh5 {[%emt 0:01:00]} 21. f3 {[%emt 0:00:14]} Nxd3
{[%emt 0:02:38]} 22. Qxd3 {[%emt 0:00:11]} Bxf3 {[%emt 0:00:57]} 23. Bxg5 {
[%emt 0:07:08]} Qxg5 {[%emt 0:01:11]} 24. Rxf3 {[%emt 0:00:11]} Rxf3 {[%emt 0:
00:00]} 25. Qxf3 {[%emt 0:00:07]} Qc1+ {[%emt 0:01:10]} 26. Kg2 {[%emt 0:00:22]
} Qc2+ {[%emt 0:00:26]} 27. Qf2 {[%emt 0:05:53]} Qe4+ {[%emt 0:00:30]} 28. Kg1
{[%emt 0:03:02]} Rf8 {[%emt 0:00:18]} 29. Qd2 {[%emt 0:00:59]} Rf3 {[%emt 0:00:
00]} 30. Rb8+ {[%emt 0:01:51]} Kh7 {[%emt 0:00:30]} 31. Rb2 {[%emt 0:01:17]}
Re3 {[%emt 0:00:59]} 32. Qc2 {[%emt 0:00:25]} Kg6 {[%emt 0:00:39]} 33. Qxe4+ {
[%emt 0:01:41]} dxe4 {[%emt 0:00:17]} 34. Rc2 {[%emt 0:00:49]} Rd3 {[%emt 0:00:
00]} 35. c4 {[%emt 0:00:23]} Kf7 {[%emt 0:00:35]} 36. c5 {[%emt 0:00:24]} Rxd4
{[%emt 0:00:26]} 37. c6 {[%emt 0:00:16]} Rd8 {[%emt 0:00:10]} 38. c7 {[%emt 0:
00:00]} Rc8 {[%emt 0:00:02]} 39. Kf2 {[%emt 0:00:08]} Ke7 {[%emt 0:01:15]} 40.
Ke3 {[%emt 0:00:13]} Kd7 {[%emt 0:00:28]} 41. Kxe4 {[%emt 0:30:18]} Rxc7 {
[%emt 0:02:07]} 42. Rxc7+ {[%emt 0:00:00]} Kxc7 {[%emt 0:03:21]} 43. Ke5 {
[%emt 0:00:00]} Kd7 {[%emt 0:02:05]} 44. a4 {[%emt 0:00:00]} Ke7 {[%emt 0:00:
00]} 45. h4 {[%emt 0:00:00]} Kf7 {[%emt 0:03:04]} 46. h5 {[%emt 0:00:00]} Ke7 {
[%emt 0:03:40]} 47. g4 {[%emt 0:00:00]} Kd7 {[%emt 0:13:07]} 48. g5 {[%emt 0:
00:00]} Ke7 {[%emt 0:02:40]} 49. g6 {[%emt 0:00:00]} Kf8 {[%emt 0:01:37]} 50.
Kxe6 {[%emt 0:00:00]} Kg8 {[%emt 0:01:07]} 51. Ke7 {[%emt 0:00:00]} Kh8 {
[%emt 0:00:05]} 52. Kd6 {[%emt 0:00:00]} 1-0

[Event "44th Chess Olympiad Open 2022"]
[Site "Chennai"]
[Date "2022.08.02"]
[Round "5.44"]
[White "Shaw, Jaden"]
[Black "Makolli, Perparim"]
[Result "1-0"]
[WhiteElo "1930"]
[BlackElo "2247"]
[Annotator "NA RC"]
[PlyCount "93"]
[EventDate "2022.??.??"]
[TimeControl "60"]

1. e4 {[%emt 0:00:04]} c5 {[%emt 0:00:24]} 2. Nf3 {[%emt 0:00:49]} d6 {[%emt 0:
00:00]} 3. Bb5+ {[%emt 0:00:49]} Nd7 {[%emt 0:00:16]} 4. O-O {[%emt 0:00:24]}
a6 {[%emt 0:01:13]} 5. Bxd7+ {[%emt 0:00:44]} Bxd7 {[%emt 0:00:12]} 6. Qe2 {
[%emt 0:00:38]} e5 {[%emt 0:00:58]} 7. Rd1 {[%emt 0:01:01]} Nf6 {[%emt 0:04:34]
} 8. c3 {[%emt 0:01:01]} Bc6 {[%emt 0:02:47]} 9. d4 {[%emt 0:03:24]} Qc7 {
[%emt 0:00:38]} 10. d5 {[%emt 0:09:59]} Bd7 {[%emt 0:00:07]} 11. a4 {[%emt 0:
00:00]} g6 {[%emt 0:01:09]} 12. Nbd2 {[%emt 0:03:07]} Bg7 {[%emt 0:00:24]} 13.
Nc4 {[%emt 0:06:05]} O-O {[%emt 0:00:39]} 14. a5 {[%emt 0:00:28]} Bb5 {[%emt 0:
00:00]} 15. Bg5 {[%emt 0:02:12]} Nh5 {[%emt 0:00:20]} 16. Nfd2 {[%emt 0:03:52]}
f5 {[%emt 0:10:36]} 17. f3 {[%emt 0:03:31]} f4 {[%emt 0:00:44]} 18. Bh4 {
[%emt 0:02:30]} h6 {[%emt 0:00:21]} 19. Bf2 {[%emt 0:00:49]} Nf6 {[%emt 0:00:
00]} 20. Qe1 {[%emt 0:01:47]} Nd7 {[%emt 0:00:45]} 21. Rdc1 {[%emt 0:02:49]}
Bxc4 {[%emt 0:05:55]} 22. Nxc4 {[%emt 0:00:13]} Rac8 {[%emt 0:02:04]} 23. b4 {
[%emt 0:03:54]} g5 {[%emt 0:01:41]} 24. Rab1 {[%emt 0:03:07]} h5 {[%emt 0:00:
00]} 25. Kh1 {[%emt 0:02:21]} Bf6 {[%emt 0:02:49]} 26. Qg1 {[%emt 0:02:39]} Qb8
{[%emt 0:01:13]} 27. bxc5 {[%emt 0:03:45]} Nxc5 {[%emt 0:00:13]} 28. Nb6 {
[%emt 0:00:30]} Nd3 {[%emt 0:03:03]} 29. Nxc8 {[%emt 0:01:42]} Qxc8 {[%emt 0:
00:00]} 30. Rc2 {[%emt 0:01:08]} Bd8 {[%emt 0:02:11]} 31. Qf1 {[%emt 0:02:02]}
Nxf2+ {[%emt 0:00:59]} 32. Qxf2 {[%emt 0:00:15]} Bxa5 {[%emt 0:00:42]} 33. Qa7
{[%emt 0:01:10]} Rf7 {[%emt 0:00:20]} 34. Qf2 {[%emt 0:01:47]} Rc7 {[%emt 0:00:
00]} 35. g3 {[%emt 0:02:27]} Rf7 {[%emt 0:04:55]} 36. c4 {[%emt 0:04:07]} g4 {
[%emt 0:03:05]} 37. c5 {[%emt 0:01:51]} fxg3 {[%emt 0:00:55]} 38. Qxg3 {
[%emt 0:00:49]} Rxf3 {[%emt 0:04:02]} 39. Qh4 {[%emt 0:01:00]} Bd8 {[%emt 0:00:
00]} 40. Qxh5 {[%emt 0:01:08]} Bf6 {[%emt 0:00:08]} 41. c6 {[%emt 0:31:28]} b5
{[%emt 0:31:32]} 42. c7 {[%emt 0:00:35]} Bg7 {[%emt 0:00:42]} 43. Rg1 {[%emt 0:
00:00]} Rf8 {[%emt 0:02:25]} 44. Qxg4 {[%emt 0:00:22]} Qxg4 {[%emt 0:00:05]}
45. Rxg4 {[%emt 0:00:03]} Rc8 {[%emt 0:00:05]} 46. Rg6 {[%emt 0:00:14]} b4 {
[%emt 0:00:25]} 47. Rxd6 {[%emt 0:01:05]} 1-0

[Event "44th Chess Olympiad Open 2022"]
[Site "Chennai"]
[Date "2022.08.02"]
[Round "5.45"]
[White "Rohl Montes, Juan Armando"]
[Black "Rehan, Deng Cypriano"]
[Result "1-0"]
[WhiteElo "2382"]
[BlackElo "2105"]
[Annotator "RC"]
[PlyCount "59"]
[EventDate "2022.??.??"]
[TimeControl "60"]

1. e4 {[%emt 0:00:22]} e6 {[%emt 0:00:34]} 2. d4 {[%emt 0:00:28]} d5 {[%emt 0:
00:00]} 3. Nd2 {[%emt 0:00:36]} Nd7 {[%emt 0:03:00]} 4. Ngf3 {[%emt 0:06:09]}
dxe4 {[%emt 0:02:22]} 5. Nxe4 {[%emt 0:00:07]} Ngf6 {[%emt 0:00:13]} 6. Bd3 {
[%emt 0:00:11]} Nxe4 {[%emt 0:01:18]} 7. Bxe4 {[%emt 0:02:11]} h6 {[%emt 0:00:
00]} 8. O-O {[%emt 0:10:54]} Nf6 {[%emt 0:04:08]} 9. Bd3 {[%emt 0:00:03]} Bd6 {
[%emt 0:01:11]} 10. Re1 {[%emt 0:07:55]} O-O {[%emt 0:00:23]} 11. Ne5 {[%emt 0:
00:00]} c5 {[%emt 0:02:57]} 12. dxc5 {[%emt 0:00:38]} Bxc5 {[%emt 0:00:04]} 13.
Qf3 {[%emt 0:00:12]} Qe7 {[%emt 0:06:41]} 14. Qg3 {[%emt 0:12:45]} Kh8 {
[%emt 0:04:07]} 15. Qh4 {[%emt 0:01:15]} Nh7 {[%emt 0:07:16]} 16. Qh5 {[%emt 0:
00:00]} Kg8 {[%emt 0:13:42]} 17. Ng4 {[%emt 0:04:47]} f5 {[%emt 0:11:37]} 18.
Qg6 {[%emt 0:04:43]} fxg4 {[%emt 0:01:48]} 19. Qxh7+ {[%emt 0:00:09]} Kf7 {
[%emt 0:00:16]} 20. Bg6+ {[%emt 0:11:48]} Kf6 {[%emt 0:02:27]} 21. Bf4 {
[%emt 0:00:28]} Rh8 {[%emt 0:11:38]} 22. Be5+ {[%emt 0:01:59]} Kg5 {[%emt 0:00:
00]} 23. Qxh8 {[%emt 0:00:12]} Kxg6 {[%emt 0:00:41]} 24. Re4 {[%emt 0:00:09]}
h5 {[%emt 0:02:52]} 25. Bc3 {[%emt 0:02:45]} Bd7 {[%emt 0:02:58]} 26. Qxa8 {
[%emt 0:00:12]} Bc6 {[%emt 0:00:28]} 27. Re5 {[%emt 0:00:32]} Bxf2+ {[%emt 0:
00:00]} 28. Kxf2 {[%emt 0:00:44]} Qh4+ {[%emt 0:00:16]} 29. Kg1 {[%emt 0:00:17]
} Bxg2 {[%emt 0:01:44]} 30. Qe8+ {[%emt 0:00:09]} 1-0

[Event "44th Chess Olympiad Open 2022"]
[Site "Chennai"]
[Date "2022.08.02"]
[Round "5.45"]
[White "Castro Torres, Jose Luis"]
[Black "Peter Majur Manyang"]
[Result "1-0"]
[WhiteElo "2326"]
[BlackElo "2095"]
[Annotator "RC"]
[PlyCount "83"]
[EventDate "2022.??.??"]
[TimeControl "60"]

1. e4 {[%emt 0:00:06]} c6 {[%emt 0:00:07]} 2. d4 {[%emt 0:00:06]} d5 {[%emt 0:
00:00]} 3. Nc3 {[%emt 0:00:04]} dxe4 {[%emt 0:00:07]} 4. Nxe4 {[%emt 0:00:07]}
Nf6 {[%emt 0:00:07]} 5. Nxf6+ {[%emt 0:00:39]} exf6 {[%emt 0:00:13]} 6. c3 {
[%emt 0:01:35]} Bd6 {[%emt 0:00:23]} 7. Bd3 {[%emt 0:00:31]} O-O {[%emt 0:00:
00]} 8. Qc2 {[%emt 0:01:08]} Re8+ {[%emt 0:00:22]} 9. Ne2 {[%emt 0:01:07]} h6 {
[%emt 0:03:24]} 10. Be3 {[%emt 0:05:18]} b5 {[%emt 0:00:17]} 11. O-O-O {
[%emt 0:07:19]} Be6 {[%emt 0:00:06]} 12. Kb1 {[%emt 0:00:18]} Qa5 {[%emt 0:00:
00]} 13. Nc1 {[%emt 0:02:17]} Na6 {[%emt 0:05:11]} 14. Qd2 {[%emt 0:08:09]} Bf8
{[%emt 0:00:48]} 15. h4 {[%emt 0:00:58]} Nc7 {[%emt 0:00:23]} 16. g4 {[%emt 0:
00:00]} b4 {[%emt 0:03:12]} 17. c4 {[%emt 0:02:32]} Bxg4 {[%emt 0:04:33]} 18.
Rdg1 {[%emt 0:10:54]} h5 {[%emt 0:10:22]} 19. Nb3 {[%emt 0:00:22]} Qa6 {
[%emt 0:00:02]} 20. Rg3 {[%emt 0:04:28]} Qc8 {[%emt 0:01:53]} 21. Rhg1 {
[%emt 0:14:44]} Kh8 {[%emt 0:10:48]} 22. Qc2 {[%emt 0:12:09]} Bd6 {[%emt 0:00:
00]} 23. R3g2 {[%emt 0:00:21]} g6 {[%emt 0:00:55]} 24. Bxg6 {[%emt 0:02:04]}
fxg6 {[%emt 0:00:32]} 25. Rxg4 {[%emt 0:00:01]} hxg4 {[%emt 0:05:36]} 26. Qxg6
{[%emt 0:00:02]} Bf8 {[%emt 0:00:01]} 27. Rxg4 {[%emt 0:01:02]} Qxg4 {[%emt 0:
00:00]} 28. Qxg4 {[%emt 0:00:01]} Rad8 {[%emt 0:01:34]} 29. Qh5+ {[%emt 0:00:
00]} Kg8 {[%emt 0:00:03]} 30. Qg6+ {[%emt 0:00:28]} Kh8 {[%emt 0:00:23]} 31. h5
{[%emt 0:00:22]} Be7 {[%emt 0:00:41]} 32. Nd2 {[%emt 0:01:23]} Ne6 {[%emt 0:00:
00]} 33. Qh6+ {[%emt 0:00:15]} Kg8 {[%emt 0:00:02]} 34. Qg6+ {[%emt 0:00:09]}
Kh8 {[%emt 0:00:01]} 35. Ne4 {[%emt 0:00:18]} Nf8 {[%emt 0:00:04]} 36. Qf7 {
[%emt 0:00:16]} Nh7 {[%emt 0:00:06]} 37. h6 {[%emt 0:00:55]} Rg8 {[%emt 0:00:
00]} 38. Qxe7 {[%emt 0:00:08]} Rde8 {[%emt 0:00:01]} 39. Qc7 {[%emt 0:01:13]}
Rxe4 {[%emt 0:00:07]} 40. Qxc6 {[%emt 0:00:15]} f5 {[%emt 0:00:35]} 41. d5 {
[%emt 0:03:05]} Nf8 {[%emt 0:04:30]} 42. Qf6+ {[%emt 0:00:46]} 1-0

[Event "44th Chess Olympiad Open 2022"]
[Site "Chennai"]
[Date "2022.08.02"]
[Round "5.45"]
[White "Gong Thon Gong"]
[Black "Palomo, Franklin Annervys"]
[Result "1-0"]
[WhiteElo "2176"]
[BlackElo "2324"]
[Annotator "RC"]
[PlyCount "81"]
[EventDate "2022.??.??"]
[TimeControl "60"]

1. e4 {[%emt 0:00:37]} c5 {[%emt 0:00:21]} 2. Nf3 {[%emt 0:00:30]} e6 {[%emt 0:
00:00]} 3. d4 {[%emt 0:00:27]} cxd4 {[%emt 0:00:08]} 4. Nxd4 {[%emt 0:00:03]}
Nf6 {[%emt 0:00:14]} 5. Nc3 {[%emt 0:00:11]} d6 {[%emt 0:00:15]} 6. f4 {
[%emt 0:00:08]} Be7 {[%emt 0:01:41]} 7. Be3 {[%emt 0:00:06]} Nc6 {[%emt 0:00:
00]} 8. Qf3 {[%emt 0:00:13]} O-O {[%emt 0:01:14]} 9. O-O-O {[%emt 0:00:18]} Bd7
{[%emt 0:07:21]} 10. Nb3 {[%emt 0:01:46]} Rc8 {[%emt 0:05:02]} 11. g4 {[%emt 0:
00:00]} a6 {[%emt 0:08:22]} 12. g5 {[%emt 0:00:37]} Ne8 {[%emt 0:00:20]} 13.
Kb1 {[%emt 0:00:37]} b5 {[%emt 0:00:24]} 14. Rg1 {[%emt 0:00:13]} f6 {[%emt 0:
00:00]} 15. g6 {[%emt 0:02:47]} f5 {[%emt 0:05:09]} 16. exf5 {[%emt 0:00:42]}
h6 {[%emt 0:00:19]} 17. fxe6 {[%emt 0:00:23]} Bxe6 {[%emt 0:00:02]} 18. Bh3 {
[%emt 0:00:46]} Bxh3 {[%emt 0:06:09]} 19. Qxh3 {[%emt 0:00:03]} Bf6 {[%emt 0:
00:00]} 20. Nd5 {[%emt 0:01:21]} Rb8 {[%emt 0:05:12]} 21. Rge1 {[%emt 0:02:22]}
Qc8 {[%emt 0:03:07]} 22. Qxc8 {[%emt 0:05:43]} Rxc8 {[%emt 0:00:09]} 23. Nd4 {
[%emt 0:00:24]} Bh4 {[%emt 0:09:18]} 24. Nxc6 {[%emt 0:03:39]} Rxc6 {[%emt 0:
00:00]} 25. Re2 {[%emt 0:00:11]} a5 {[%emt 0:08:40]} 26. Bf2 {[%emt 0:01:05]}
Bd8 {[%emt 0:02:01]} 27. Bd4 {[%emt 0:00:14]} Nf6 {[%emt 0:06:09]} 28. Bxf6 {
[%emt 0:05:01]} Bxf6 {[%emt 0:00:03]} 29. Re6 {[%emt 0:00:02]} Bd8 {[%emt 0:00:
00]} 30. a3 {[%emt 0:00:28]} Bh4 {[%emt 0:02:12]} 31. Rd3 {[%emt 0:02:44]} Rf5
{[%emt 0:02:47]} 32. Rb3 {[%emt 0:05:00]} Rc5 {[%emt 0:04:17]} 33. c4 {[%emt 0:
00:00]} Kf8 {[%emt 0:05:48]} 34. Rbe3 {[%emt 0:02:58]} Kg8 {[%emt 0:01:05]} 35.
Rxd6 {[%emt 0:01:05]} bxc4 {[%emt 0:00:36]} 36. Ne7+ {[%emt 0:00:09]} Bxe7 {
[%emt 0:00:02]} 37. Rxe7 {[%emt 0:00:02]} Rxf4 {[%emt 0:01:00]} 38. Rd8+ {
[%emt 0:00:45]} Rf8 {[%emt 0:00:02]} 39. Ree8 {[%emt 0:01:32]} Rcf5 {[%emt 0:
00:00]} 40. Kc2 {[%emt 0:00:32]} Rf2+ {[%emt 0:00:29]} 41. Kc3 {[%emt 0:29:35]}
1-0

[Event "44th Chess Olympiad Open 2022"]
[Site "Chennai"]
[Date "2022.08.02"]
[Round "5.45"]
[White "Madol Garang Panthoum"]
[Black "Escalona Landi, Samid Eduardo"]
[Result "1/2-1/2"]
[WhiteElo "1985"]
[BlackElo "2191"]
[Annotator "NA RC"]
[PlyCount "201"]
[EventDate "2022.??.??"]
[TimeControl "60"]

1. e4 {[%emt 0:00:05]} c5 {[%emt 0:00:04]} 2. Nc3 {[%emt 0:01:10]} Nc6 {
[%emt 0:00:06]} 3. Nf3 {[%emt 0:01:33]} g6 {[%emt 0:00:04]} 4. Bc4 {[%emt 0:00:
00]} Bg7 {[%emt 0:00:05]} 5. O-O {[%emt 0:01:15]} d6 {[%emt 0:00:05]} 6. a3 {
[%emt 0:01:33]} Nf6 {[%emt 0:00:05]} 7. d4 {[%emt 0:04:36]} cxd4 {[%emt 0:00:
00]} 8. Nxd4 {[%emt 0:00:05]} O-O {[%emt 0:00:40]} 9. Nde2 {[%emt 0:01:24]} Bd7
{[%emt 0:00:13]} 10. h3 {[%emt 0:01:18]} Rc8 {[%emt 0:00:03]} 11. Ba2 {[%emt 0:
00:00]} b5 {[%emt 0:01:00]} 12. Be3 {[%emt 0:03:29]} a5 {[%emt 0:00:20]} 13. f3
{[%emt 0:09:01]} Ne5 {[%emt 0:00:07]} 14. Nf4 {[%emt 0:05:50]} Nc4 {[%emt 0:00:
00]} 15. Bxc4 {[%emt 0:01:53]} Rxc4 {[%emt 0:00:06]} 16. Qd3 {[%emt 0:02:19]}
Rc8 {[%emt 0:23:09]} 17. Rab1 {[%emt 0:03:54]} Rb8 {[%emt 0:03:18]} 18. Rfd1 {
[%emt 0:04:05]} b4 {[%emt 0:03:36]} 19. axb4 {[%emt 0:02:55]} axb4 {[%emt 0:00:
00]} 20. Ncd5 {[%emt 0:02:08]} Nxd5 {[%emt 0:01:16]} 21. Nxd5 {[%emt 0:00:09]}
Be6 {[%emt 0:00:29]} 22. Nf4 {[%emt 0:09:21]} Bd7 {[%emt 0:03:55]} 23. Nd5 {
[%emt 0:02:35]} e6 {[%emt 0:02:17]} 24. Nf4 {[%emt 0:01:08]} Be5 {[%emt 0:00:
00]} 25. Qd2 {[%emt 0:03:02]} Qf6 {[%emt 0:06:31]} 26. Nd3 {[%emt 0:03:49]} Bd4
{[%emt 0:00:15]} 27. Nf2 {[%emt 0:02:30]} Bxe3 {[%emt 0:01:53]} 28. Qxe3 {
[%emt 0:01:46]} e5 {[%emt 0:00:32]} 29. Ra1 {[%emt 0:05:55]} Rbc8 {[%emt 0:00:
00]} 30. Rd2 {[%emt 0:03:57]} Rc6 {[%emt 0:05:59]} 31. Ra7 {[%emt 0:03:37]} Be6
{[%emt 0:00:50]} 32. Rb7 {[%emt 0:00:43]} Rfc8 {[%emt 0:02:03]} 33. Rxb4 {
[%emt 0:01:25]} Rxc2 {[%emt 0:00:06]} 34. Rxc2 {[%emt 0:02:30]} Rxc2 {[%emt 0:
00:00]} 35. Rb8+ {[%emt 0:00:56]} Kg7 {[%emt 0:00:19]} 36. b4 {[%emt 0:00:41]}
Qe7 {[%emt 0:00:35]} 37. b5 {[%emt 0:01:21]} h5 {[%emt 0:02:52]} 38. b6 {
[%emt 0:00:33]} Rb2 {[%emt 0:00:09]} 39. Qc1 {[%emt 0:01:38]} Rb3 {[%emt 0:00:
00]} 40. Nd1 {[%emt 0:01:18]} Qh4 {[%emt 0:01:14]} 41. Nf2 {[%emt 0:34:17]} Qe7
{[%emt 0:30:26]} 42. Kh2 {[%emt 0:02:53]} d5 {[%emt 0:00:17]} 43. exd5 {
[%emt 0:01:20]} Bxd5 {[%emt 0:01:00]} 44. Qc8 {[%emt 0:01:18]} Kf6 {[%emt 0:00:
00]} 45. Qh8+ {[%emt 0:01:36]} Kf5 {[%emt 0:00:22]} 46. Re8 {[%emt 0:00:45]}
Qd6 {[%emt 0:00:28]} 47. Rd8 {[%emt 0:00:59]} Qe6 {[%emt 0:00:58]} 48. Kg3 {
[%emt 0:00:27]} Bxf3 {[%emt 0:15:48]} 49. gxf3 {[%emt 0:00:51]} e4 {[%emt 0:00:
00]} 50. Qd4 {[%emt 0:00:24]} Qe5+ {[%emt 0:02:10]} 51. Qxe5+ {[%emt 0:00:03]}
Kxe5 {[%emt 0:00:03]} 52. Re8+ {[%emt 0:00:29]} Kf5 {[%emt 0:00:29]} 53. Nxe4 {
[%emt 0:00:11]} Rxb6 {[%emt 0:00:05]} 54. Rc8 {[%emt 0:00:17]} h4+ {[%emt 0:00:
00]} 55. Kxh4 {[%emt 0:00:57]} Kf4 {[%emt 0:00:10]} 56. Ng5 {[%emt 0:00:28]} f6
{[%emt 0:00:19]} 57. Rc4+ {[%emt 0:00:31]} Ke3 {[%emt 0:00:15]} 58. Ne4 {
[%emt 0:01:05]} Kxf3 {[%emt 0:00:07]} 59. Nd2+ {[%emt 0:00:12]} Ke3 {[%emt 0:
00:00]} 60. Nf1+ {[%emt 0:00:12]} Kf3 {[%emt 0:00:37]} 61. Nh2+ {[%emt 0:00:11]
} Ke3 {[%emt 0:01:24]} 62. Kg4 {[%emt 0:00:10]} Rb2 {[%emt 0:03:25]} 63. Nf1+ {
[%emt 0:00:18]} Kd3 {[%emt 0:00:35]} 64. Rc6 {[%emt 0:01:38]} Rf2 {[%emt 0:00:
00]} 65. Rd6+ {[%emt 0:00:26]} Ke4 {[%emt 0:00:15]} 66. Nd2+ {[%emt 0:00:08]}
Ke5 {[%emt 0:00:35]} 67. Nc4+ {[%emt 0:00:02]} Ke4 {[%emt 0:00:09]} 68. Kg3 {
[%emt 0:00:26]} Rf3+ {[%emt 0:00:40]} 69. Kg2 {[%emt 0:00:10]} Rc3 {[%emt 0:00:
00]} 70. Nd2+ {[%emt 0:00:45]} Ke5 {[%emt 0:00:19]} 71. Rd8 {[%emt 0:00:03]} g5
{[%emt 0:00:47]} 72. Nf3+ {[%emt 0:00:38]} Kf5 {[%emt 0:00:13]} 73. Kg3 {
[%emt 0:00:04]} Ra3 {[%emt 0:01:10]} 74. Rb8 {[%emt 0:00:35]} Ra4 {[%emt 0:00:
00]} 75. Rb5+ {[%emt 0:00:37]} Kg6 {[%emt 0:00:05]} 76. Rd5 {[%emt 0:00:30]}
Re4 {[%emt 0:00:35]} 77. Rd3 {[%emt 0:01:03]} Re8 {[%emt 0:00:16]} 78. Nh2 {
[%emt 0:00:21]} Re6 {[%emt 0:00:26]} 79. Kf3 {[%emt 0:00:12]} Ra6 {[%emt 0:00:
00]} 80. Nf1 {[%emt 0:00:38]} Rb6 {[%emt 0:00:24]} 81. Ne3 {[%emt 0:00:25]} f5
{[%emt 0:00:37]} 82. Nc4 {[%emt 0:00:34]} Rb4 {[%emt 0:01:05]} 83. Ne5+ {
[%emt 0:01:44]} Kh5 {[%emt 0:00:33]} 84. Kg3 {[%emt 0:00:49]} g4 {[%emt 0:00:
00]} 85. hxg4+ {[%emt 0:00:33]} fxg4 {[%emt 0:00:07]} 86. Rd5 {[%emt 0:00:13]}
Kh6 {[%emt 0:00:17]} 87. Nxg4+ {[%emt 0:00:06]} Kg6 {[%emt 0:00:05]} 88. Kh4 {
[%emt 0:00:03]} Ra4 {[%emt 0:00:09]} 89. Rg5+ {[%emt 0:00:20]} Kf7 {[%emt 0:00:
00]} 90. Kh5 {[%emt 0:00:52]} Ke7 {[%emt 0:00:08]} 91. Rg6 {[%emt 0:00:07]}
Ra5+ {[%emt 0:00:26]} 92. Kh6 {[%emt 0:00:05]} Ra1 {[%emt 0:00:45]} 93. Kg7 {
[%emt 0:00:13]} Rg1 {[%emt 0:00:14]} 94. Kh6 {[%emt 0:00:35]} Ra1 {[%emt 0:00:
00]} 95. Rb6 {[%emt 0:00:22]} Rg1 {[%emt 0:00:15]} 96. Kg5 {[%emt 0:00:06]} Kd7
{[%emt 0:00:12]} 97. Kf5 {[%emt 0:00:19]} Kc7 {[%emt 0:00:08]} 98. Rg6 {
[%emt 0:00:06]} Rf1+ {[%emt 0:00:11]} 99. Ke6 {[%emt 0:00:44]} Rg1 {[%emt 0:00:
00]} 100. Rg7+ {[%emt 0:00:26]} Kb6 {[%emt 0:03:58]} 101. Rg8 {[%emt 0:03:56]}
1/2-1/2

[Event "44th Chess Olympiad Open 2022"]
[Site "Chennai"]
[Date "2022.08.02"]
[Round "5.46"]
[White "Tissir, Mohamed"]
[Black "Abera, Aydagnuhem Gezachew"]
[Result "1-0"]
[WhiteElo "2366"]
[BlackElo "2137"]
[Annotator "RC"]
[PlyCount "93"]
[EventDate "2022.??.??"]
[TimeControl "60"]

1. e4 {[%emt 0:00:06]} e5 {[%emt 0:00:11]} 2. Nf3 {[%emt 0:00:12]} Nc6 {
[%emt 0:00:07]} 3. Bc4 {[%emt 0:00:09]} Be7 {[%emt 0:01:02]} 4. O-O {[%emt 0:
00:00]} Nf6 {[%emt 0:00:13]} 5. d3 {[%emt 0:00:25]} O-O {[%emt 0:00:14]} 6. Re1
{[%emt 0:00:07]} d6 {[%emt 0:01:02]} 7. a4 {[%emt 0:04:06]} a5 {[%emt 0:02:34]}
8. c3 {[%emt 0:02:04]} Be6 {[%emt 0:04:52]} 9. Na3 {[%emt 0:00:33]} Bxc4 {
[%emt 0:04:39]} 10. Nxc4 {[%emt 0:00:12]} Qd7 {[%emt 0:01:03]} 11. Bg5 {
[%emt 0:05:24]} Kh8 {[%emt 0:04:17]} 12. d4 {[%emt 0:16:17]} exd4 {[%emt 0:00:
00]} 13. cxd4 {[%emt 0:01:03]} Ng8 {[%emt 0:13:06]} 14. Bd2 {[%emt 0:07:53]} d5
{[%emt 0:07:02]} 15. Nce5 {[%emt 0:03:53]} Qd6 {[%emt 0:05:55]} 16. Bf4 {
[%emt 0:07:53]} Nxe5 {[%emt 0:09:39]} 17. dxe5 {[%emt 0:06:35]} Qb4 {[%emt 0:
00:00]} 18. Qxd5 {[%emt 0:10:17]} Rad8 {[%emt 0:02:08]} 19. Qb5 {[%emt 0:03:34]
} c6 {[%emt 0:04:25]} 20. Qxb4 {[%emt 0:05:05]} Bxb4 {[%emt 0:00:30]} 21. Red1
{[%emt 0:00:04]} Ne7 {[%emt 0:04:45]} 22. h4 {[%emt 0:00:17]} h6 {[%emt 0:00:
00]} 23. Kf1 {[%emt 0:02:51]} Rfe8 {[%emt 0:01:45]} 24. h5 {[%emt 0:03:02]} Nc8
{[%emt 0:02:04]} 25. Ke2 {[%emt 0:02:25]} Nb6 {[%emt 0:01:19]} 26. Rxd8 {
[%emt 0:01:36]} Rxd8 {[%emt 0:00:07]} 27. e6 {[%emt 0:02:31]} Re8 {[%emt 0:00:
00]} 28. Bc7 {[%emt 0:02:56]} Nc4 {[%emt 0:03:35]} 29. exf7 {[%emt 0:04:47]}
Rf8 {[%emt 0:01:24]} 30. Ne5 {[%emt 0:02:38]} Nxe5 {[%emt 0:01:47]} 31. Bxe5 {
[%emt 0:00:06]} Rxf7 {[%emt 0:00:08]} 32. Rd1 {[%emt 0:00:10]} b5 {[%emt 0:00:
00]} 33. axb5 {[%emt 0:00:26]} cxb5 {[%emt 0:00:18]} 34. Rd8+ {[%emt 0:00:07]}
Rf8 {[%emt 0:04:35]} 35. Rd7 {[%emt 0:00:09]} Re8 {[%emt 0:00:29]} 36. Bxg7+ {
[%emt 0:00:33]} Kg8 {[%emt 0:00:11]} 37. Kd3 {[%emt 0:01:26]} Re6 {[%emt 0:00:
00]} 38. Bd4 {[%emt 0:01:08]} Rd6 {[%emt 0:01:38]} 39. Rc7 {[%emt 0:00:52]} a4
{[%emt 0:00:38]} 40. e5 {[%emt 0:00:15]} Rd8 {[%emt 0:00:17]} 41. Ke4 {[%emt 0:
00:00]} Ba5 {[%emt 0:30:54]} 42. Rb7 {[%emt 0:00:17]} b4 {[%emt 0:00:46]} 43.
e6 {[%emt 0:00:34]} b3 {[%emt 0:00:00]} 44. Rg7+ {[%emt 0:00:00]} Kh8 {[%emt 0:
00:00]} 45. Ra7+ {[%emt 0:00:00]} Rxd4+ {[%emt 0:00:00]} 46. Kxd4 {[%emt 0:00:
00]} a3 {[%emt 0:00:00]} 47. e7 {[%emt 0:00:00]} 1-0